Cogmind - Beta 15 @@@ ROGUE MODE // 2025.10.19 @ 20:59:08 Player: Sangros Result: Destroyed by G-34 Mercenary with Small Laser Performance ------------- Evolutions (1) 500 Regions Visited (3) 600 Robots Destroyed (8) 40 Value Destroyed (295) 295 Prototype IDs (0) 0 Alien Tech Used (0) 0 Bonus (0) 0 TOTAL SCORE: 1435 Bonus ------- None Cogmind --------- Core Integrity 0/400 Matter 27/300 Energy 100/100 System Corruption 0% Temperature Cool (6) Movement Core (100) Ox1 Location -9/Materials Parts ------- > --- POWER (1) -------- (None) > --- PROPULSION (4) --- (None) > --- UTILITY (2) ------ Small Storage Unit > --- WEAPON (2) ------- (None) > --- INVENTORY (8) ---- Small Storage Unit High-capacity Battery (250) High-capacity Matter Pod (0) Peak State ------------ > --- POWER ------------ Ion Engine > --- PROPULSION ------- Aluminum Leg Aluminum Leg > --- UTILITY ---------- Small Storage Unit High-capacity Battery > --- WEAPON ----------- Assault Rifle Grenade Launcher > --- INVENTORY -------- Light Ion Engine Light Treads Light Treads EM Pulse Gun Assault Rifle Datajack [Rating: 7] Favorites ----------- Power Light Ion Engine Engine Light Ion Engine Propulsion Aluminum Leg Leg Aluminum Leg Wheel Wheel Utility Small Storage Unit Device Heat Sink Storage Small Storage Unit Protection Propulsion Shielding Weapon Light Cannon Energy Gun Medium Laser Ballistic Gun Assault Rifle Ballistic Cannon Light Cannon Launcher Grenade Launcher Build | -11 -10 -10 -9 ------- Run | Yrd Mat Min Mat Slots Evolved 2 | . . . 2 Power . | . . . . Propulsion 2 | . . . 2 Utility . | . . . . Weapon . | . . . . Parts Attached 19 | 7 4 2 6 Power 2 | 1 . 1 . Engine 2 | 1 . 1 . Core . | . . . . Reactor . | . . . . Propulsion 5 | 3 . . 2 Treads . | . . . . Leg 4 | 2 . . 2 Wheel 1 | 1 . . . Hover . | . . . . Flight . | . . . . Utility 5 | 1 2 . 2 Device 1 | . . . 1 Storage 3 | 1 1 . 1 Processor . | . . . . Hackware . | . . . . Protection 1 | . 1 . . Artifact . | . . . . Weapon 7 | 2 2 1 2 Energy Gun 2 | 1 . . 1 Energy Cannon . | . . . . Ballistic Gun 2 | 1 . 1 . Ballistic Cannon 1 | . 1 . . Launcher 2 | . 1 . 1 Special Weapon . | . . . . Impact Weapon . | . . . . Slashing Weapon . | . . . . Piercing Weapon . | . . . . Special Melee Weapon . | . . . . Unidentified Prototypes . | . . . . Parts Lost 13 | . 1 . 12 Power 1 | . . . 1 Propulsion 4 | . . . 4 Utility 2 | . . . 2 Weapon 6 | . 1 . 5 Highest Loss Streak 5 | . 1 . 5 To Critical Strikes . | . . . . Average Backups 5 | 3 6 6 5 Power . | . 1 . . Propulsion . | 1 . . . Utility 3 | . 2 4 3 Weapon 1 | . 2 2 1 Tool/Special . | . . . . Unused Backups 6 | 1 3 . 2 Power . | . . . . Propulsion 3 | 1 2 . . Utility 2 | . . . 2 Weapon . | . . . . Tool/Special 1 | . 1 . . Average Slot Usage (%) 79 | . 97 96 54 Engine 9 | . 14 14 3 Leg 22 | . 28 28 14 Device 1 | . . . 3 Storage 13 | . 15 14 11 Protection 8 | . 9 14 2 Energy Gun 2 | . 1 . 4 Ballistic Gun 6 | . 3 10 5 Ballistic Cannon 9 | . 10 14 3 Launcher 4 | . 12 . 3 Peak Build Rating 7 | 6 7 7 7 Average Rating 5 | 3 6 6 4 On Entrance 4 | . 6 6 7 Naked Turns . | . . . . Heaviest Build 20 | 14 20 14 14 Greatest Support 20 | 20 20 20 20 Greatest Overweight (x) 4 | . . . 4 Average Overweight (x) . | . . . . Largest Inventory Capacity 8 | 8 8 8 8 Average Capacity 7 | 6 8 8 8 Most Carried 8 | 6 8 8 8 Average Carried 5 | 3 6 6 5 Final Capacity 8 | 8 8 8 8 Final Carried 8 | 4 8 6 3 Class Distribution -------------------- 100% | Mutant Dominant Class ---------------- Mutant | -10/Materials Mutant | -10/Mines Mutant | -9/Materials Resources | -11 -10 -10 -9 ----------- Run | Yrd Mat Min Mat Matter Collected 286 | 178 40 24 44 Remotely . | . . . . Salvage Created 173 | . 106 23 44 Parts 8 | . 3 2 3 Haulers Intercepted . | . . . . Recyclers Shooed . | . . . . Parts Field Recycled . | . . . . Retrieved Matter . | . . . . Parts Self-Destructed . | . . . . Prevented . | . . . . Kills | -11 -10 -10 -9 ------- Run | Yrd Mat Min Mat Combat Hostiles Destroyed 6 | . 5 . 1 Guns 1 | . . . 1 Cannons 2 | . 2 . . AOE 3 | . 3 . . Classes Destroyed 3 | . 2 1 . Worker 1 | . 1 . . Tunneler 1 | . . 1 . Grunt 6 | . 5 . 1 Best Kill Streak 5 | . 5 1 1 Combat Bots Only 5 | . 5 . 1 Max Kills in Single Turn 1 | . 1 1 1 Gunslinging . | . . . . Exploded 1 | . 1 . . Melee . | . . . . Uniques/NPCs Destroyed . | . . . . Combat | -11 -10 -10 -9 -------- Run | Yrd Mat Min Mat Hostile Shots Fired 190 | . 37 10 143 Missed 72 | . 16 4 52 Hits 118 | . 21 6 91 Projectile 118 | . 21 6 91 Critical Strikes 1 | . . . 1 Damage Taken 1607 | . 372 56 1179 Core 502 | . 86 9 407 Absorbed by Shields . | . . . . Redirected to Shielding 51 | . 26 5 20 Core Remaining (%) 81 | 100 . 62 . Volleys Fired 36 | . 17 2 17 Largest 2 | . 2 2 1 Hottest 60 | . 60 50 50 Shots Fired 51 | . 31 3 17 Gun 21 | . 3 1 17 Cannon 17 | . 15 2 . Launcher 13 | . 13 . . Special . | . . . . Kinetic 24 | . 17 3 4 Thermal 8 | . . . 8 Explosive 13 | . 13 . . Electromagnetic 6 | . 1 . 5 Robot Hit Streak 4 | . 3 2 4 Robot Miss Streak 5 | . 2 2 5 Penetration Max . | . . . . Secondary Targets . | . . . . Shots Hit Robots 24 | . 15 1 8 Core Hits 17 | . 13 1 3 Critical Kills . | . . . . Critical Parts Destroyed . | . . . . Critical Strikes 1 | . . . 1 Burn 1 | . . . 1 Melee Attacks . | . . . . Impact . | . . . . Slashing . | . . . . Piercing . | . . . . Sneak Attacks . | . . . . Combat Hostiles . | . . . . Follow-up Attacks . | . . . . Damage Inflicted 858 | . 737 19 102 Guns 119 | . 18 . 101 Cannons 77 | . 58 19 . Explosions 661 | . 661 . . Melee . | . . . . Ramming 1 | . . . 1 Kinetic 92 | . 58 19 15 Thermal 217 | . 167 . 50 Explosive 494 | . 494 . . Electromagnetic 54 | . 18 . 36 Impact . | . . . . Slashing . | . . . . Piercing . | . . . . Highest Corruption . | . . . . Average Corruption . | . . . . Corruption Purged . | . . . . Corruption Blocked . | . . . . Overload Shots . | . . . . Overflow Damage 35 | . 35 . . Projectiles . | . . . . Explosions 35 | . 35 . . Melee . | . . . . Knockbacks . | . . . . Impact . | . . . . Kinetic . | . . . . Secondary . | . . . . Self-Inflicted Damage 126 | . 126 . . Shots 4 | . 4 . . Rammed . | . . . . Targets Rammed 1 | . . . 1 Kicked 1 | . . . 1 Crushed . | . . . . Highest Temperature 18 | . 18 . 10 Average Temperature 10 | . 11 . 5 Received Heat Transfer 612 | . 138 . 474 Siege Activations . | . . . . Martial Activations . | . . . . Shielding Activations . | . . . . Robots Disrupted . | . . . . Combat Hostiles . | . . . . Robots Corrupted . | . . . . Combat Hostiles . | . . . . Parts Fried . | . . . . Impact Corruptions . | . . . . Robots Melted . | . . . . Combat Hostiles . | . . . . Parts Melted . | . . . . Heat Transferred 322 | . 100 . 222 Parts Sabotaged . | . . . . Parts Stolen . | . . . . Parts Stripped . | . . . . Power Chain Reactions . | . . . . Alert | -11 -10 -10 -9 ------- Run | Yrd Mat Min Mat Maximum Alert Level 1 | . 1 . . Low Security (%) 97 | 100 89 100 100 Level 1 2 | . 10 . . Level 2 . | . . . . Level 3 . | . . . . Level 4 . | . . . . Level 5 . | . . . . High Security . | . . . . Max Security . | . . . . Peak Influence 223 | . 223 78 88 Initial 78 | . . 78 . Average 29 | . 66 12 28 Influence Increases 566 | . 314 5 247 Destroy 0b10 Robot/C 120 | . 100 . 20 Destroy 0b10 Robot/NC 10 | . 5 5 . Destroy Leader 40 | . 30 . 10 Successful Hack 7 | . . . 7 Disable Machine 105 | . 90 . 15 Destroy Structure 74 | . 74 . . Partial Spotted 15 | . . . 15 Lose Combat Pursuer 195 | . 15 . 180 Influence Decreases 566 | . 111 208 247 Entered New Map 125 | . . 125 . Time Decay 361 | . 101 83 177 Lost Part 80 | . 10 . 70 Squads Dispatched 5 | . 4 . 1 Investigation 1 | . 1 . . Extermination . | . . . . Reinforcement 4 | . 3 . 1 Assault . | . . . . Garrison . | . . . . Intercept . | . . . . Searches Triggered . | . . . . Construction Impeded . | . . . . Haulers Reinforced . | . . . . Active Scanning Responses . | . . . . Cargo Convoy Interrupts . | . . . . Stealth | -11 -10 -10 -9 --------- Run | Yrd Mat Min Mat Distress Signals 3 | . 2 . 1 Communications Jammed . | . . . . Distress Signals . | . . . . Times Spotted 39 | . 16 3 20 Peak Tracking Total 8 | . 5 3 8 Tactical Retreats 9 | . 1 . 8 Traps | -11 -10 -10 -9 ------- Run | Yrd Mat Min Mat Traps Triggered . | . . . . Indirectly . | . . . . Trap Hack Attempts . | . . . . Triggered . | . . . . Disarmed . | . . . . Reprogrammed . | . . . . Reused . | . . . . Traps Extracted . | . . . . Installed . | . . . . Triggered . | . . . . Machines | -11 -10 -10 -9 ---------- Run | Yrd Mat Min Mat Machines Disabled 7 | . 6 . 1 Max in Single Turn 2 | . 2 . 1 Machines Repaired . | . . . . Machines Dismantled . | . . . . Machines Sabotaged . | . . . . Overloaded Fab Kills . | . . . . Hacking | -11 -10 -10 -9 --------- Run | Yrd Mat Min Mat Machines Accessed 3 | . 2 . 1 Terminals 1 | . . . 1 Fabricators . | . . . . Repair Stations 1 | . 1 . . Recycling Units 1 | . 1 . . Scanalyzers . | . . . . Garrison Access . | . . . . Total Hacks 9 | . 6 . 3 Successful 7 | . 5 . 2 Failed 2 | . 1 . 1 Catastrophic . | . . . . Database Lockouts . | . . . . Manual . | . . . . Terminals 3 | . . . 3 Fabricators . | . . . . Repair Stations 3 | . 3 . . Recycling Units 3 | . 3 . . Scanalyzers . | . . . . Garrison Access . | . . . . Terminal Hacks 2 | . . . 2 Emergency Access Points 1 | . . . 1 Registered Components 1 | . . . 1 Fabricator Hacks . | . . . . Repair Station Hacks 2 | . 2 . . Scan Component 2 | . 2 . . Recycling Unit Hacks 3 | . 3 . . Recycle Component 3 | . 3 . . Scanalyzer . | . . . . Garrison Access Hacks . | . . . . Unauthorized Hacks . | . . . . Terminals . | . . . . Fabricators . | . . . . Repair Stations . | . . . . Recycling Units . | . . . . Scanalyzers . | . . . . Garrison Access . | . . . . Data Cores Recovered . | . . . . Used . | . . . . Hacking Detections 2 | . 1 . 1 Full Trace Events 2 | . 1 . 1 Feedback Events . | . . . . Feedback Blocked . | . . . . Robot Schematics Acquired . | . . . . Robots Built . | . . . . Authchips . | . . . . Time . | . . . . Total Robot Build Rating . | . . . . Part Schematics Acquired . | . . . . Parts Built . | . . . . Authchips . | . . . . Time . | . . . . Total Part Build Rating . | . . . . Parts Repaired . | . . . . Time . | . . . . Parts Recycled 3 | . 3 . . Recycled Matter . | . . . . Retrieved Matter . | . . . . Retrieved Components . | . . . . Parts Scanalyzed . | . . . . Part Schematics Acquired . | . . . . Parts Damaged . | . . . . Bothacking | -11 -10 -10 -9 ------------ Run | Yrd Mat Min Mat Used RIF Installer . | . . . . Robots Hacked . | . . . . Non-combat . | . . . . Combat . | . . . . Robot Hacks Applied . | . . . . Relay Couplers Released . | . . . . Fabnet Peak Effective % . | . . . . Robots Rewired . | . . . . Allies Hacked . | . . . . Hacks Repelled . | . . . . Allies | -11 -10 -10 -9 -------- Run | Yrd Mat Min Mat Total Allies . | . . . . Largest Group . | . . . . Highest-Rated Group . | . . . . Highest-Rated Ally . | . . . . Total Orders . | . . . . Ally Attacks . | . . . . Total Damage . | . . . . Kills . | . . . . Allies Corrupted . | . . . . Allies Melted . | . . . . Intel | -11 -10 -10 -9 ------- Run | Yrd Mat Min Mat Active Infowar (turns) . | . . . . Robot Analysis Total . | . . . . Derelict Logs Recovered . | . . . . Drone Launches . | . . . . Drone Recoveries . | . . . . Exploration | -11 -10 -10 -9 ------------- Run | Yrd Mat Min Mat Turns Passed 1626 | 67 344 578 637 Spaces Moved 1194 | 49 232 476 437 Core 112 | 16 . . 96 Treads . | . . . . Legs 1075 | 26 232 476 341 Wheels 7 | 7 . . . Hover . | . . . . Flight . | . . . . Fastest Speed 50 | 50 120 120 100 Average Speed 124 | 91 120 120 135 Slowest Speed 250 | 120 120 120 250 Overloaded Moves . | . . . . Propulsion Burnouts . | . . . . Robots Hopped . | . . . . Potential Cave-ins . | . . . . Cave-ins Triggered . | . . . . Exploration Rate (%) 32 | 5 52 44 29 Regions Visited 3 Branch Regions 1 Pre-discovered Areas . | . . . . Known Exits Taken . | . . . . Unknown Exits Taken 3 | 1 1 1 . Scrap Searched . | . . . . Spaces Dug . | . . . . Terrain Destroyed 83 | . 83 . . Melee . | . . . . Projectile 1 | . 1 . . AOE 82 | . 82 . . Terrain Rammed . | . . . . Walls Destroyed . | . . . . Machines Disabled . | . . . . Actions | -11 -10 -10 -9 --------- Run | Yrd Mat Min Mat Total 1280 | 69 266 480 465 Wait 4 | 2 2 . . Move 1191 | 48 231 475 437 Hop . | . . . . Pick Up 22 | 9 10 . 3 Fast Attach 3 | 3 . . . Attach 11 | 3 1 1 6 Detach . | . . . . Swap 7 | 2 3 1 1 Drop 5 | 2 2 1 . Fire 36 | . 17 2 17 Melee . | . . . . Ram . | . . . . Kick 1 | . . . 1 Crush . | . . . . Escape Stasis . | . . . . Rewire . | . . . . Trap . | . . . . Miscellaneous . | . . . . Route ------- -11/Scrapyard -10/Materials (discovered 2 exits: *Mat / [*Min]) -10/Mines -9/Materials History --------- Turn | Location | Event 44 | -11/Scrapyard | Discovered new exit (range 15) 68 | -11/Scrapyard | Entered Materials 171 | -10/Materials | Discovered new exit (range 11) 318 | -10/Materials | Build established: Mutant 401 | -10/Materials | Discovered new exit (range 8) 412 | -10/Materials | Entered Mines 984 | -10/Mines | Discovered new exit (range 8) 990 | -10/Mines | Entered Materials 990 | -9/Materials | Evolved 2 slots: Propulsion x2 1519 | -9/Materials | Core integrity fell below 50% 1606 | -9/Materials | Core integrity fell below 20% 1627 | -9/Materials | Destroyed by G-34 Mercenary with Small Laser Last Messages --------------- object also shows its Armor in the Scan window. G-34 Mercenary destroyed. Acquired 44 matter. Acquired Aluminum Leg. Material Processor disabled. EM Pulse Gun destroyed. Kicked Y-45 Defender. Ramming works as a last resort when unarmed or blocked, but can have serious negative consequences. W-16 Scout sends out distress signal. Y-45 Defender suffers critical hit (Burn). Y-45 Defender heat damages Heat Sink. Y-45 Defender heat damages Lgt. Armor Plating. Aluminum Leg destroyed. Grenade Launcher destroyed. Heat Sink destroyed. Critical hit (Burn: +37). Med. Laser destroyed. Map ----- +----------------------------------------------------+ | ????????????????????????|????????????????????????? | | ?????????????????????????????????????????????????? | | ?????????????????????????????????????????????????? | | ?????????????????????????????????????????????????? | | ???????#?????????????????????????????????????????? | | ???????# ???????????????????????????????????????? | | ???????? ??????????????????????????????????????? | | ????????? ????????????????????????????????????? | | ??????????? ????????????????????###???????###### | | ?######????? ??????????????????? ????????# | | ?# #??????? ?????????????????? ????????# | | ?# #???######+######??????????? ????????# | | ?# ##### #??????????# #??####### | | ?# / + ############ #??# ## | | ## ##### """ """ + #??# ## | | # #???# """"""""" ###### #??# ## | | # #???# """"" #????# """ #??# ## | | # #???# #????# """ #??# ######+ | | # #???# #????# """ #??# | | ###+########/#########????# #### | | # #????######## ]! | | + #????# """ # ############# =! [ | | # #????# """ # #???????????##=! | | # ######### #????# """ # #?????????#### | | # #???????# ###### # #????????##! | | # #???????# # @ # #????????#! | | # #???????# Yggg # #????????#! "" | | # #?????? /w """ # # #????????#! "T | | ##+######### """ # # #????????#! "" | | ?# # """ ######## #????????##! | | ?# # #??????# #?????????#### | | ?# + #??????# #????????????###### | | ?#/!! # #??????# #########?????????# | | ?#/! # """ #??????# # """ #?????????# | | ?#!! # "R #??????# # "T" #?????????# | | ?# # """ #??????# + [ #?????????# | | ?# # ? +??????# # #?????????# | | ?######## ## ? #??????# # #?????????# | | ????????#### ??######??????# ##+######?????????# | | ???????????????????????????# # #?????????# | | ???????????????????????????# #[ #?????????# | | ???????????????????????????# # #?????????# | | ???????????????????????????# # #?????????# | | ???????????????????????????# # #?????????# | | ???????????????????????????# # #?????????# | | ???????????????????????????# # #?????????# | | ???????????????????????????# # #######???# | | ???????????????????????????# + # ##### | | ???????????????????????????#######+### | | ?????????????????????????????????# #?# " | +----------------------------------------------------+ Best States ------------- Heat Dissipation 38 Energy Generation 10 Energy Capacity 500 Matter Stores 195 Matter Capacity 300 Sight Range 16 Terrain Scan Density 10 Propulsion Shielding 33 Evasion (%) 55 Item Schematics ----------------- None Robot Schematics ------------------ None Fabricated ------------ Nothing Repaired ---------- Nothing Alien Tech Used ----------------- None Achievements -------------- Oops Challenges ------------ None Game ------ Seed StormNodeCoupler Manual? 0 Play Time 00:26:35 Cumulative 2.3 hours Start 2025.10.19 @ 20:32:00 End 2025.10.19 @ 20:59:08 Sessions 1 Manual Loads 0 Difficulty Rogue Special Mode None Game No. 6 Rogue 6 Adventurer 0 Explorer 0 Win Type - Total 0 Types 0/0/0/0/0/0/0/0/0/0 Lore% 0 Gallery% 3 Achievement% 3 Wizard Run 0 Options --------- Layout 1 ASCII 0 Keyboard 0 Movement Mouse Keybinds 0 Fullscreen 1 Font 24/Smallcaps Map View 50x35 Zoom Use 0% Tactical HUD 0 Map Filters NONE Filters NONE Steam 1 RUN: c73d5c75-395e-4fcc-81a3-14bb66616e09